Cogmind - Beta 14 @@@ ROGUE MODE // 2024.10.05 @ 23:52:11 Player: Lunace Result: Destroyed by H-88 Terminator with KE Penetrator Performance ------------- Evolutions (9) 4500 Regions Visited (22) 4400 Robots Destroyed (183) 915 Value Destroyed (8447) 8447 Prototype IDs (29) 580 Alien Tech Used (2) 400 Bonus (3654) 3654 TOTAL SCORE: 22896 Bonus ------- High Alert Combat Kills 1116 Follower Combat Kills 834 Entered Garrisons 600 Used RIF Installer 1000 Met Zhirov 300 Friendly Fire -196 Cogmind --------- Core Integrity 0/1600 Matter 241/300 Energy 46/100 System Corruption 6% Temperature Cool (0) Movement Core (50) Location -1/Access Parts ------- > --- POWER (2) -------- (None) > --- PROPULSION (8) --- (None) > --- UTILITY (12) ----- Advanced Melee Analysis Suite Graphene Brace > --- WEAPON (3) ------- (None) > --- INVENTORY (5) ---- Enhanced Nova Cannon Peak State ------------ > --- POWER ------------ Antimatter Reactor > --- PROPULSION ------- Improved Antigrav System Improved Gyrokinetic Inverter Improved Gyrokinetic Inverter Cooled Nuclear Pulse Thruster Cooled Nuclear Pulse Thruster Cooled Nuclear Pulse Thruster Field Propulsion Array > --- UTILITY ---------- Advanced Coolant Injector Advanced Melee Analysis Suite Advanced Melee Analysis Suite Improved Armor Integrity Analyzer Advanced Transmission Jammer Advanced Reaction Control System Experimental Core Shielding Graphene Brace Relay Coupler [NC] > --- WEAPON ----------- Enhanced Nova Cannon > --- INVENTORY -------- Fusion Reactor Transdimensional Reconstructor Enhanced Nova Cannon Improved Remote Datajack Improved Plasma Cutter [Rating: 131] Favorites ----------- Power Neutrino Core Engine Reinforced Ion Engine Power Core Neutrino Core Reactor Light Antimatter Reactor Propulsion Titanium Leg Treads Advanced Treads Leg Titanium Leg Wheel Centrium Wheel Hover Unit Antigrav System Flight Unit Cooled Nuclear Pulse Thruster Utility Powered Armor Device Coolant Injector Storage Large Storage Unit Processor Advanced Melee Analysis Suite Hackware Relay Coupler [NC] Protection Powered Armor Weapon Improved Medium Laser Energy Gun Improved Medium Laser Energy Cannon Matter Neutralizer Ballistic Gun KE Penetrator Ballistic Cannon Heavy Gauss Cannon Launcher Micro-nuke Launcher Special Weapon Remote Datajack Impact Weapon Impact Mace Slashing Weapon Dual-blade Saw Piercing Weapon Spear Build | -11 -10 -9 -9 -8 -8 -8 -7 -7 -7 -7 -7 -7 -5 -5 -4 -4 -4 -4 -3 -3 -2 -1 ------- Run | Yrd Mat Mat Min Mat Gar Mat Fac Gar Fac Sto Rec Scr Fac Gar Fac Upp Upp Zhi Pro Res Res Acc Slots Evolved 18 | . . 2 . 2 . . 2 . . . . . 4 . 2 . . . . 2 2 2 Power 1 | . . . . . . . . . . . . . 1 . . . . . . . . . Propulsion 6 | . . 1 . 1 . . . . . . . . 2 . . . . . . . 2 . Utility 10 | . . 1 . 1 . . 2 . . . . . 1 . 2 . . . . 1 . 2 Weapon 1 | . . . . . . . . . . . . . . . . . . . . 1 . . Parts Attached 225 | 7 4 27 1 25 18 3 17 36 . 1 3 1 13 7 18 1 12 10 1 7 7 6 Power 20 | 1 . 3 . 1 1 2 . . . . . . 1 2 1 . 2 1 . 1 3 1 Engine 5 | 1 . 3 . . . 1 . . . . . . . . . . . . . . . . Core 5 | . . . . 1 1 1 . . . . . . 1 . . . 1 . . . . . Reactor 10 | . . . . . . . . . . . . . . 2 1 . 1 1 . 1 3 1 Propulsion 53 | 2 . 9 . 6 2 1 1 8 . . . . 6 1 5 . 2 3 1 3 2 1 Treads 19 | 2 . 9 . 2 . . . 6 . . . . . . . . . . . . . . Leg 14 | . . . . 4 2 1 1 2 . . . . . 1 2 . 1 . . . . . Wheel 3 | . . . . . . . . . . . . . . . 3 . . . . . . . Hover 13 | . . . . . . . . . . . . . 6 . . . 1 . 1 3 1 1 Flight 4 | . . . . . . . . . . . . . . . . . . 3 . . 1 . Utility 73 | 2 1 9 1 5 5 . 7 13 . 1 2 . 4 2 9 . 5 3 . 3 1 . Device 42 | 1 . 6 1 3 3 . 5 4 . 1 1 . 2 1 5 . 4 2 . 3 . . Storage 3 | 1 1 . . . . . 1 . . . . . . . . . . . . . . . Processor 7 | . . . . . . . . 1 . . . . 1 1 3 . 1 . . . . . Hackware 3 | . . . . . . . . 1 . . . . 1 . . . . . . . 1 . Protection 18 | . . 3 . 2 2 . 1 7 . . 1 . . . 1 . . 1 . . . . Artifact . | . . . . . . . . . . . . . . . . . . . . . . . Weapon 79 | 2 3 6 . 13 10 . 9 15 . . 1 1 2 2 3 1 3 3 . . 1 4 Energy Gun 19 | . . 4 . 9 5 . 1 . . . . . . . . . . . . . . . Energy Cannon 13 | . . . . . 2 . . 7 . . 1 . . . . . . . . . 1 2 Ballistic Gun 8 | 2 2 . . . . . 1 1 . . . . . . . . 2 . . . . . Ballistic Cannon 10 | . 1 2 . . . . 1 2 . . . . 1 . 1 . 1 1 . . . . Launcher 9 | . . . . 2 1 . 3 2 . . . . . 1 . . . . . . . . Special Weapon 8 | . . . . . . . . 2 . . . 1 . . 1 . . 2 . . . 2 Impact Weapon 2 | . . . . . . . 1 1 . . . . . . . . . . . . . . Slashing Weapon 9 | . . . . 2 2 . 1 . . . . . 1 1 1 1 . . . . . . Piercing Weapon 1 | . . . . . . . 1 . . . . . . . . . . . . . . . Special Melee Weapon . | . . . . . . . . . . . . . . . . . . . . . . . Unidentified Prototypes 17 | . . 2 . 3 . 1 2 1 . . . . . . . . . 5 . 1 2 . Parts Lost 69 | . . . . 2 9 . 6 3 . . 1 . 1 7 4 8 4 . 2 2 8 12 Power 5 | . . . . . 1 . . . . . . . . . . 2 . . . . 1 1 Propulsion 25 | . . . . . 1 . 2 2 . . . . 1 5 1 3 1 . 1 1 3 4 Utility 27 | . . . . 1 5 . 4 . . . 1 . . 2 2 1 2 . . 1 4 4 Weapon 12 | . . . . 1 2 . . 1 . . . . . . 1 2 1 . 1 . . 3 Highest Loss Streak 12 | . . . . 1 5 . 4 7 . . 1 . 1 4 4 4 2 . 1 2 8 12 To Critical Strikes . | . . . . . . . . . . . . . . . . . . . . . . . Average Slot Usage (%) 88 | . 100 98 100 99 98 100 93 89 84 84 84 84 91 70 73 62 46 77 83 73 65 35 Engine 2 | . 14 11 11 8 . . . . . . . . . . . . . . . . . . Core 4 | . . . . . 9 9 7 7 7 7 7 7 10 9 . . 1 3 . . . . Reactor 1 | . . . . . . . . . . . . . . 1 10 9 1 6 4 . 4 . Treads 12 | . 28 32 33 25 . . . 18 15 15 15 15 . . . . . . . . . . Leg 9 | . . . . 10 35 36 29 2 . . . . . . 5 . 2 5 5 2 . . Hover 1 | . . . . . . . . . . . . . 26 12 . . 1 5 5 10 10 8 Device 14 | . 14 11 11 17 16 18 22 8 15 15 13 15 16 12 18 14 8 21 17 16 13 7 Storage 6 | . 14 11 11 9 9 9 7 7 7 7 7 7 . . . . . . . . . . Processor 4 | . . . . . . . . 3 7 7 7 7 10 8 15 15 17 19 15 14 12 7 Hackware 3 | . . . . . . . . 3 7 7 7 7 10 10 5 5 5 5 5 4 4 7 Protection 9 | . . 10 11 9 8 9 9 20 7 7 8 7 . . . 5 . 1 5 4 1 . Energy Gun 6 | . . 19 22 17 14 9 2 . . . . . . . . . . . . . . . Energy Cannon 2 | . . . . . 1 9 2 4 . . 5 7 . . . . . . . . 2 . Ballistic Cannon 2 | . 7 1 . . . . 3 2 7 7 7 . . 4 2 . 2 1 5 4 . . Special Weapon 1 | . . . . . . . . 3 7 7 1 6 4 . . . . 2 3 . . . Peak Build Rating 131 | 7 7 25 24 37 50 50 60 73 73 73 75 75 87 83 88 87 86 114 114 114 131 98 Average Rating 52 | 5 6 20 23 30 38 49 54 53 73 72 74 72 82 67 70 68 46 87 101 100 106 63 On Entrance 58 | . 7 7 24 23 37 50 50 40 73 73 73 75 73 83 60 87 46 86 114 90 108 60 Naked Turns . | . . . . . . . . . . . . . . . . . . . . . . . Heaviest Build 90 | 14 20 41 34 37 49 49 64 90 61 61 70 68 39 47 62 62 56 56 50 32 36 14 Greatest Support 150 | 40 40 66 66 88 68 68 67 150 150 150 150 150 50 41 45 26 20 20 27 18 42 9 Greatest Overweight (x) 18 | 3 . . . . . . 1 4 . . . . . 15 18 3 2 3 2 1 . 4 Average Overweight (x) . | . . . . . . . . . . . . . . 1 1 2 . 1 . . . . Largest Inventory Capacity 15 | 8 10 10 10 10 10 10 15 15 15 15 15 15 15 5 5 5 5 5 5 5 5 5 Average Capacity 10 | 7 8 10 10 10 10 10 13 15 15 15 15 15 5 5 5 5 5 5 5 5 5 5 Most Carried 15 | 1 8 10 10 10 10 10 15 15 15 15 15 15 14 5 5 5 5 5 5 5 5 5 Average Carried 10 | . 3 9 10 9 9 8 11 14 15 15 13 13 5 4 4 5 4 4 4 4 4 3 Final Capacity 15 | 8 10 10 10 10 10 10 15 15 15 15 15 15 5 5 5 5 5 5 5 5 5 5 Final Carried 15 | 1 8 10 10 10 10 10 15 15 15 15 13 15 5 5 5 5 4 5 5 5 5 1 Class Distribution -------------------- 69% | Mutant 19% | Scavenger-Mutant 5% | Derelict-Mutant 3% | Infiltrator-Mutant Dominant Class ---------------- Mutant | -10/Materials Mutant | -9/Materials Mutant | -9/Mines Mutant | -8/Materials Mutant | -8/Garrison Mutant | -8/Materials Mutant | -7/Factory Scavenger-Mutant | -7/Garrison Scavenger-Mutant | -7/Factory Mutant | -7/Storage Mutant | -7/Recycling Mutant | -7/Scraptown Mutant | -5/Factory Mutant | -5/Garrison Scavenger-Mutant | -4/Factory Infiltrator-Mutant | -4/Upper Caves Derelict-Mutant | -4/Upper Caves Derelict-Mutant | -4/Zhirov Derelict-Mutant | -3/Proximity Caves Derelict-Mutant | -3/Research Derelict-Mutant | -2/Research Mutant | -1/Access Resources | -11 -10 -9 -9 -8 -8 -8 -7 -7 -7 -7 -7 -7 -5 -5 -4 -4 -4 -4 -3 -3 -2 -1 ----------- Run | Yrd Mat Mat Min Mat Gar Mat Fac Gar Fac Sto Rec Scr Fac Gar Fac Upp Upp Zhi Pro Res Res Acc Matter Collected 4505 | 264 126 403 10 290 188 55 578 978 17 172 151 10 127 127 311 274 116 . 265 7 . 36 Remotely 131 | . . . . . . . . . . . . . . . 131 . . . . . . . Salvage Created 6595 | 23 206 1067 141 1040 1060 117 712 1005 . 111 148 . 17 378 334 129 38 . 69 . . . Parts 349 | 5 24 53 5 59 66 9 30 40 . 7 5 . 3 13 25 . 3 . 2 . . . Haulers Intercepted 9 | . 1 3 . 4 . 1 . . . . . . . . . . . . . . . . Recyclers Shooed 1 | . 1 . . . . . . . . . . . . . . . . . . . . . Parts Field Recycled . | . . . . . . . . . . . . . . . . . . . . . . . Retrieved Matter . | . . . . . . . . . . . . . . . . . . . . . . . Parts Self-Destructed 4 | . . . . . . . . . . . . . . . . . 3 . 1 . . . Prevented 4 | . . . . . . . . . . . . . . . . . . . 4 . . . Kills | -11 -10 -9 -9 -8 -8 -8 -7 -7 -7 -7 -7 -7 -5 -5 -4 -4 -4 -4 -3 -3 -2 -1 ------- Run | Yrd Mat Mat Min Mat Gar Mat Fac Gar Fac Sto Rec Scr Fac Gar Fac Upp Upp Zhi Pro Res Res Acc Combat Hostiles Destroyed 142 | . 7 16 3 18 22 1 18 24 . 5 4 . . 11 8 3 1 . 1 . . . Melee 3 | . . . . . . . 1 . . . . . . . 1 1 . . . . . . Guns 42 | . 1 15 2 10 12 . 2 . . . . . . . . . . . . . . . Cannons 41 | . 6 . . . . 1 8 14 . 5 3 . . 1 1 . 1 . 1 . . . AOE 44 | . . . . 7 4 . 5 10 . . . . . 10 6 2 . . . . . . Classes Destroyed 16 | 1 4 5 1 1 2 . 1 1 . . . . . . . . . . . . . . Worker 8 | . . . . 3 . . 2 . . . . . . . 3 . . . . . . . Builder 8 | . . 1 . 1 . . 1 . . . . . 1 . 4 . . . . . . . Tunneler 1 | 1 . . . . . . . . . . . . . . . . . . . . . . Hauler 9 | . 1 3 . 4 . 1 . . . . . . . . . . . . . . . . Recycler 5 | . . 1 . 1 . . 2 . . . . . . . 1 . . . . . . . Operator 1 | . . 1 . . . . . . . . . . . . . . . . . . . . Watcher 8 | . 1 4 . 1 1 . 1 . . . . . . . . . . . . . . . Swarmer 46 | . 3 . . 7 8 . 4 14 . 2 . . . 2 5 1 . . . . . . Grunt 57 | . 4 9 2 6 9 . 9 6 . 3 . . . 7 . 1 . . 1 . . . Brawler 6 | . . 1 . . 3 . . 1 . . . . . 1 . . . . . . . . Duelist 2 | . . . 1 1 . . . . . . . . . . . . . . . . . . Sentry 19 | . . 6 . 4 . 1 2 1 . . 4 . . . . 1 . . . . . . Demolisher 1 | . . . . . . . . 1 . . . . . . . . . . . . . . Hunter 6 | . . . . . 1 . 2 1 . . . . . . 2 . . . . . . . Programmer 4 | . . . . . . . 1 1 . . . . . . 1 . 1 . . . . . Behemoth 2 | . . . . . 1 . . . . . . . . 1 . . . . . . . . Best Kill Streak 10 | 1 4 5 3 10 8 1 8 5 . 4 2 . 1 9 7 3 1 . 1 . . . Combat Bots Only 9 | . 4 5 3 4 8 1 5 5 . 4 2 . . 9 7 3 1 . 1 . . . Max Kills in Single Turn 3 | 1 1 2 2 3 2 1 2 3 . 1 1 . 1 3 2 1 1 . 1 . . . Gunslinging 1 | . . . 1 . . . . . . . . . . . . . . . . . . . Exploded 3 | . . . . 3 2 . 2 2 . . . . . 3 2 1 . . . . . . Melee 1 | . . . . . . . 1 . . . . . . . 1 1 . . . . . . Uniques/NPCs Destroyed . | . . . . . . . . . . . . . . . . . . . . . . . Combat | -11 -10 -9 -9 -8 -8 -8 -7 -7 -7 -7 -7 -7 -5 -5 -4 -4 -4 -4 -3 -3 -2 -1 -------- Run | Yrd Mat Mat Min Mat Gar Mat Fac Gar Fac Sto Rec Scr Fac Gar Fac Upp Upp Zhi Pro Res Res Acc Hostile Shots Fired 1341 | . 14 82 11 98 112 . 218 72 . 20 126 . 7 45 37 53 50 . 54 40 87 215 Missed 471 | . 2 18 7 29 34 . 83 21 . 5 36 . . 18 9 14 19 . 33 21 39 83 Damage Taken 14005 | . 111 885 46 969 1445 . 1249 926 . 298 687 . 138 716 520 930 600 . 397 464 1170 2454 Core 3621 | . . 71 . 33 246 . 210 64 . 14 44 . . 243 150 74 304 . 98 103 419 1548 Absorbed by Shields 331 | . . . . . . . 188 . . . . . . 91 . . . . . . 52 . Reduced by Siege Mode 35 | . . . . . . . . . . . 35 . . . . . . . . . . . Redirected to Shielding 156 | . . . . . . . . . . . . . . . . . . . 43 66 47 . Ignored by Resistances 277 | . . . . 4 56 . 217 . . . . . . . . . . . . . . . Regen/Repaired (Parts) 1275 | . . . . 180 . . . . . . . 1053 . . . . . . . 42 . . Core Remaining (%) 74 | 100 100 . 82 . . 49 . . . . . 52 . 75 . . . . 45 92 71 . Volleys Fired 534 | 2 19 70 6 53 69 9 62 129 3 23 18 . 3 18 31 3 7 . 3 . 2 4 Largest 2 | 2 2 2 2 2 2 2 2 2 1 1 2 . 1 2 1 1 1 . 1 . 1 1 Hottest 166 | 40 55 112 112 112 136 146 146 162 5 61 166 . 5 110 61 49 66 . 66 . 120 120 Shots Fired 826 | 4 38 140 12 105 130 15 115 139 3 23 27 . 3 22 31 3 7 . 3 . 2 4 Gun 481 | 4 19 128 12 102 124 6 52 34 . . . . . . . . . . . . . . Cannon 280 | . 19 12 . . 3 9 57 78 . 21 27 . . 16 22 . 7 . 3 . 2 4 Launcher 35 | . . . . 3 3 . 6 7 . . . . . 6 7 3 . . . . . . Special 30 | . . . . . . . . 20 3 2 . . 3 . 2 . . . . . . . Kinetic 285 | 4 38 12 . . . . 79 65 . 21 18 . . 16 22 . 7 . 3 . . . Thermal 232 | . . 128 12 77 . . . . . . 9 . . . . . . . . . 2 4 Explosive 35 | . . . . 3 3 . 6 7 . . . . . 6 7 3 . . . . . . Electromagnetic 244 | . . . . 25 127 15 30 47 . . . . . . . . . . . . . . Robot Hit Streak 33 | 4 5 17 9 17 19 14 8 33 2 8 13 . 2 6 5 5 5 . 1 . . . Robot Miss Streak 10 | . 3 10 3 2 2 1 5 5 1 4 1 . 2 1 3 . 2 . 2 . . . Penetration Max 1 | . . . . . . . 1 . . . . . . . . . 1 . . . . . Secondary Targets 5 | . . 1 1 . 3 . . . . . . . . . . . . . . . . . Max Gunslinging Chain 1 | . . 1 1 . 1 . . . . . . . . . . . . . . . . . Shots Hit Robots 565 | 4 24 96 9 72 98 9 70 93 2 14 21 . 3 10 25 9 5 . 1 . . . Core Hits 278 | 2 11 36 2 36 33 5 36 45 . 5 7 . . 29 19 10 1 . 1 . . . Critical Kills 5 | . . . . . . . 1 1 . . 1 . . . . . 1 . 1 . . . Critical Parts Destroyed 6 | . . . . . . . 1 . . . . . . . . . 4 . 1 . . . Critical Strikes 43 | . . 8 1 3 1 . 8 6 . 1 2 . . . 5 1 5 . 2 . . . Burn 12 | . . 8 1 3 . . . . . . . . . . . . . . . . . . Meltdown 1 | . . . . . . . . . . . 1 . . . . . . . . . . . Destroy 9 | . . . . . . . 1 1 . . . . . . . . 5 . 2 . . . Blast 15 | . . . . . . . 6 5 . 1 1 . . . 2 . . . . . . . Corrupt 1 | . . . . . 1 . . . . . . . . . . . . . . . . . Smash 1 | . . . . . . . 1 . . . . . . . . . . . . . . . Sever 4 | . . . . . . . . . . . . . . . 3 1 . . . . . . Melee Attacks 67 | . . . . 2 10 . 11 5 . . . . 9 9 14 7 . . . . . . Impact 15 | . . . . . . . 10 5 . . . . . . . . . . . . . . Slashing 52 | . . . . 2 10 . 1 . . . . . 9 9 14 7 . . . . . . Piercing . | . . . . . . . . . . . . . . . . . . . . . . . Sneak Attacks 7 | . . . . . 1 . 1 . . . . . 2 . 3 . . . . . . . Combat Hostiles 1 | . . . . . . . 1 . . . . . . . . . . . . . . . Follow-up Attacks . | . . . . . . . . . . . . . . . . . . . . . . . Damage Inflicted 17686 | 40 367 1574 156 1696 2228 202 2684 2973 . 537 776 . 114 1920 1543 667 160 . 48 1 . . Guns 5974 | 40 134 1461 156 1315 1663 51 498 656 . . . . . . . . . . . . . . Cannons 5339 | . 233 113 . . 40 151 1289 1284 . 537 776 . . 224 484 . 160 . 48 . . . Explosions 5266 | . . . . 381 451 . 515 1033 . . . . . 1650 733 503 . . . . . . Melee 1106 | . . . . . 74 . 382 . . . . . 114 46 326 164 . . . . . . Ramming 1 | . . . . . . . . . . . . . . . . . . . . 1 . . Kinetic 5200 | 40 367 113 . . . . 1455 1247 . 537 525 . . 224 484 . 160 . 48 . . . Thermal 2978 | . . 1461 156 940 67 . . 103 . . 251 . . . . . . . . . . . Explosive 5096 | . . . . 381 384 . 515 930 . . . . . 1650 733 503 . . . . . . Electromagnetic 3305 | . . . . 375 1703 202 332 693 . . . . . . . . . . . . . . Impact 318 | . . . . . . . 318 . . . . . . . . . . . . . . . Slashing 788 | . . . . . 74 . 64 . . . . . 114 46 326 164 . . . . . . Piercing . | . . . . . . . . . . . . . . . . . . . . . . . Highest Corruption 6 | . . . . 1 1 2 . 1 1 1 . . . 2 2 2 4 4 4 . 2 6 Average Corruption 1 | . . . . 1 1 1 . 1 1 1 . . . 2 1 2 2 4 4 . 1 5 Corruption Purged 1 | . . . . . . . . . . 1 . . . . . . . . . . . . Corruption Blocked . | . . . . . . . . . . . . . . . . . . . . . . . Effects 76 | . . . . 7 9 7 . 16 1 2 . . . 4 1 10 2 9 3 . . 5 Message Errors 19 | . . . . . 4 1 . 5 . . . . . 1 1 3 . 2 1 . . 1 Matter Fused 15 | . . . . 2 1 2 . 3 . . . . . . . 4 . 1 1 . . 1 Heat Flow Errors 12 | . . . . . 1 1 . 1 . 1 . . . 2 . 2 1 1 1 . . 1 Energy Discharges 5 | . . . . 1 . . . 2 . . . . . . . . . 2 . . . . Parts Fused 1 | . . . . . . 1 . . . . . . . . . . . . . . . . Data Loss (minor) 15 | . . . . 2 2 1 . 2 1 1 . . . 1 . . 1 2 . . . 2 Data Loss (major) 4 | . . . . 1 . . . 2 . . . . . . . . . 1 . . . . Misfires 3 | . . . . 1 1 . . 1 . . . . . . . . . . . . . . Alerts 2 | . . . . . . 1 . . . . . . . . . 1 . . . . . . Overload Shots . | . . . . . . . . . . . . . . . . . . . . . . . Overflow Damage 376 | . . . . . 58 27 110 87 . 3 . . 54 2 26 9 . . . . . . Projectiles 122 | . . . . . . 27 18 61 . 3 . . . . 13 . . . . . . . Explosions 64 | . . . . . 19 . . 26 . . . . . 2 13 4 . . . . . . Melee 190 | . . . . . 39 . 92 . . . . . 54 . . 5 . . . . . . Knockbacks 35 | . 3 1 . . . . 10 9 . 7 . . . . 4 . . . 1 . . . Impact 3 | . . . . . . . 3 . . . . . . . . . . . . . . . Kinetic 29 | . 2 1 . . . . 7 8 . 6 . . . . 4 . . . 1 . . . Secondary 3 | . 1 . . . . . . 1 . 1 . . . . . . . . . . . . Self-Inflicted Damage 322 | . . . . . 120 . . 37 . . . . . . 15 150 . . . . . . Shots 7 | . . . . . 3 . . 1 . . . . . . 1 2 . . . . . . Rammed 1 | . . . . . . . . . . . . . . . . . . . . 1 . . Targets Rammed 1 | . . . . . . . . . . . . . . . . . . . . 1 . . Kicked . | . . . . . . . . . . . . . . . . . . . . . . . Crushed . | . . . . . . . . . . . . . . . . . . . . . . . Highest Temperature 393 | . 12 306 195 198 190 180 199 200 . . 393 . . 81 . 24 104 134 63 . 48 117 Average Temperature 84 | . 6 95 116 71 64 77 101 84 . . 130 . . 36 . 16 65 88 36 . 22 82 Received Heat Transfer 2778 | . 30 363 24 477 447 . 402 117 . 99 204 . . 141 . 180 30 . 30 105 120 9 Effects 1 | . . . . . . . . 1 . . . . . . . . . . . . . . Energy Bleed 1 | . . . . . . . . 1 . . . . . . . . . . . . . . Siege Activations 2 | . . . . . . . . . . . 2 . . . . . . . . . . . Total Turns 31 | . . . . . . . . . . . 31 . . . . . . . . . . . Longest Duration 26 | . . . . . . . . . . . 26 . . . . . . . . . . . Robots Corrupted 11 | . . . . 2 7 . 2 . . . . . . . . . . . . . . . Combat Hostiles 9 | . . . . 1 6 . 2 . . . . . . . . . . . . . . . Parts Fried 19 | . . . . 3 10 1 2 2 . . . . . . . . . . 1 . . . Impact Corruptions 2 | . . . . . . . 2 . . . . . . . . . . . . . . . Robots Melted 3 | . . 1 1 . . . . . . . 1 . . . . . . . . . . . Combat Hostiles 3 | . . 1 1 . . . . . . . 1 . . . . . . . . . . . Parts Melted 24 | . . 16 1 5 . . . . . . 2 . . . . . . . . . . . Heat Transferred 6860 | . . 3811 407 2183 100 . . 100 . . 259 . . . . . . . . . . . Parts Sabotaged . | . . . . . . . . . . . . . . . . . . . . . . . Parts Stolen . | . . . . . . . . . . . . . . . . . . . . . . . Parts Stripped . | . . . . . . . . . . . . . . . . . . . . . . . Power Chain Reactions 4 | . . . . . 1 . . 1 . . . . . . . . . . . . . 2 Alert | -11 -10 -9 -9 -8 -8 -8 -7 -7 -7 -7 -7 -7 -5 -5 -4 -4 -4 -4 -3 -3 -2 -1 ------- Run | Yrd Mat Mat Min Mat Gar Mat Fac Gar Fac Sto Rec Scr Fac Gar Fac Upp Upp Zhi Pro Res Res Acc Peak Influence 2073 | 5 225 417 70 269 1015 681 715 2073 1147 814 438 . 125 601 733 . . . . 85 241 479 Initial 1087 | . 3 94 . 27 24 494 309 465 1087 521 314 . . 80 299 . . . . 70 45 144 Average 540 | 1 110 194 59 141 615 603 531 1289 1115 695 240 . 60 357 518 . . . . 74 114 366 Maximum Alert Level 5 | . 1 2 . 1 3 2 3 5 4 3 2 . . 2 3 . . . . . 1 2 Low Security (%) 31 | 100 86 59 100 71 11 . . . . . 44 . 100 43 . . . . . 100 81 14 Level 1 18 | . 13 32 . 28 11 . 33 . . . 39 . . 1 43 . . . . . 18 45 Level 2 24 | . . 7 . . 37 100 65 19 . 42 16 . . 55 31 . . . . . . 39 Level 3 11 | . . . . . 39 . 1 17 52 57 . . . . 24 . . . . . . . Level 4 7 | . . . . . . . . 35 47 . . . . . . . . . . . . . Level 5 5 | . . . . . . . . 26 . . . . . . . . . . . . . . High Security . | . . . . . . . . . . . . . . . . . . . . . . . Max Security . | . . . . . . . . . . . . . . . . . . . . . . . Squads Dispatched 23 | . 2 4 . 3 . 1 6 . . 2 . . 1 . . . . . . 1 1 2 Investigation 6 | . 1 . . 1 . 1 1 . . . . . . . . . . . . 1 . 1 Extermination 1 | . . . . . . . 1 . . . . . . . . . . . . . . . Reinforcement 15 | . 1 4 . 2 . . 4 . . 1 . . 1 . . . . . . . 1 1 Assault . | . . . . . . . . . . . . . . . . . . . . . . . Garrison 1 | . . . . . . . . . . 1 . . . . . . . . . . . . Intercept . | . . . . . . . . . . . . . . . . . . . . . . . Searches Triggered . | . . . . . . . . . . . . . . . . . . . . . . . Construction Impeded 3 | . . . . . . . 2 . . . . . 1 . . . . . . . . . Haulers Reinforced . | . . . . . . . . . . . . . . . . . . . . . . . Active Scanning Responses . | . . . . . . . . . . . . . . . . . . . . . . . Cargo Convoy Interrupts . | . . . . . . . . . . . . . . . . . . . . . . . Stealth | -11 -10 -9 -9 -8 -8 -8 -7 -7 -7 -7 -7 -7 -5 -5 -4 -4 -4 -4 -3 -3 -2 -1 --------- Run | Yrd Mat Mat Min Mat Gar Mat Fac Gar Fac Sto Rec Scr Fac Gar Fac Upp Upp Zhi Pro Res Res Acc Distress Signals 9 | . 2 2 . 2 1 . . . . 1 . . . . . . . . . . 1 . Communications Jammed 1 | . . . . . . . . . . . . . . . 1 . . . . . . . Distress Signals . | . . . . . . . . . . . . . . . . . . . . . . . Times Spotted 271 | . 10 29 3 23 28 2 25 35 3 7 4 . 5 15 8 7 6 . 9 8 27 17 Peak Tracking Total 17 | . 5 5 3 5 6 1 6 4 1 3 2 . 3 12 3 4 5 . 9 8 17 14 Tactical Retreats 23 | . . . . 1 1 . 1 1 . 1 . . 1 4 . . 3 . 3 . 4 3 Traps | -11 -10 -9 -9 -8 -8 -8 -7 -7 -7 -7 -7 -7 -5 -5 -4 -4 -4 -4 -3 -3 -2 -1 ------- Run | Yrd Mat Mat Min Mat Gar Mat Fac Gar Fac Sto Rec Scr Fac Gar Fac Upp Upp Zhi Pro Res Res Acc Traps Triggered 10 | . 1 . . 1 1 1 . 3 . . . . . 2 . . . . . . 1 . Indirectly . | . . . . . . . . . . . . . . . . . . . . . . . Trap Hack Attempts . | . . . . . . . . . . . . . . . . . . . . . . . Triggered . | . . . . . . . . . . . . . . . . . . . . . . . Disarmed . | . . . . . . . . . . . . . . . . . . . . . . . Reprogrammed . | . . . . . . . . . . . . . . . . . . . . . . . Reused . | . . . . . . . . . . . . . . . . . . . . . . . Traps Extracted . | . . . . . . . . . . . . . . . . . . . . . . . Installed . | . . . . . . . . . . . . . . . . . . . . . . . Triggered 4 | . . . . . . . . 1 . . . . . . . . . . 3 . . . Machines | -11 -10 -9 -9 -8 -8 -8 -7 -7 -7 -7 -7 -7 -5 -5 -4 -4 -4 -4 -3 -3 -2 -1 ---------- Run | Yrd Mat Mat Min Mat Gar Mat Fac Gar Fac Sto Rec Scr Fac Gar Fac Upp Upp Zhi Pro Res Res Acc Machines Disabled 29 | . . 1 . 1 6 . 6 6 . 1 1 . 1 2 3 . . . . . . 1 Max in Single Turn 1 | . . 1 . 1 1 . 1 1 . 1 1 . 1 1 1 . . . . . . 1 Garrison Access 3 | . . . . . . . 1 . . 1 . . . . . . . . . . 1 . Garrison Relay 12 | . . . . . 6 . . 5 . . . . . 1 . . . . . . . . Machines Repaired . | . . . . . . . . . . . . . . . . . . . . . . . Machines Dismantled . | . . . . . . . . . . . . . . . . . . . . . . . Machines Sabotaged . | . . . . . . . . . . . . . . . . . . . . . . . Overloaded Fab Kills 1 | . . . . . . . . . . . . . . . . . . . . . . 1 Hacking | -11 -10 -9 -9 -8 -8 -8 -7 -7 -7 -7 -7 -7 -5 -5 -4 -4 -4 -4 -3 -3 -2 -1 --------- Run | Yrd Mat Mat Min Mat Gar Mat Fac Gar Fac Sto Rec Scr Fac Gar Fac Upp Upp Zhi Pro Res Res Acc Machines Accessed 74 | . 4 5 . 9 4 5 8 3 . 3 11 . 5 1 . 2 1 4 . 2 3 4 Terminals 43 | . 3 5 . 6 4 3 4 3 . 2 6 . 2 1 . . . . . 1 . 3 Fabricators 4 | . . . . . . . 1 . . . . . 2 . . . . . . . . 1 Repair Stations 5 | . . . . 2 . 1 . . . . . . . . . . . . . 1 1 . Recycling Units 8 | . 1 . . . . 1 1 . . . 5 . . . . . . . . . . . Scanalyzers 1 | . . . . . . . . . . . . . . . . . . . . . 1 . Garrison Access 6 | . . . . 1 . . 2 . . 1 . . 1 . . . . . . . 1 . Total Hacks 167 | . 11 20 . 28 7 11 16 5 . 5 19 . 9 1 . 5 1 17 . 3 4 5 Successful 101 | . 6 11 . 18 4 5 7 3 . 3 11 . 4 1 . 5 1 17 . 1 2 2 Failed 66 | . 5 9 . 10 3 6 9 2 . 2 8 . 5 . . . . . . 2 2 3 Catastrophic 15 | . 1 . . . 1 2 2 . . 1 4 . 1 . . . . . . . . 3 Database Lockouts . | . . . . . . . . . . . . . . . . . . . . . . . Manual 91 | . 10 13 . 20 1 6 6 2 . 1 17 . 5 . . . . . . 3 2 5 Terminals 105 | . 7 20 . 23 7 7 8 5 . 4 13 . 4 1 . . . . . 2 . 4 Fabricators 8 | . . . . . . . 3 . . . . . 4 . . . . . . . . 1 Repair Stations 8 | . . . . 4 . 1 . . . . . . . . . . . . . 1 2 . Recycling Units 15 | . 4 . . . . 3 2 . . . 6 . . . . . . . . . . . Scanalyzers 1 | . . . . . . . . . . . . . . . . . . . . . 1 . Garrison Access 7 | . . . . 1 . . 3 . . 1 . . 1 . . . . . . . 1 . Terminal Hacks 45 | . . 5 . 5 4 . 1 3 . 2 1 . . 1 . 5 1 17 . . . . Record 10 | . . . . . . . . . . . . . . . . 4 1 5 . . . . Part Schematic 4 | . . . . . . . . . . . . . . . . . . 4 . . . . Robot Analysis 4 | . . . . . . . . . . . . . . . . . . 4 . . . . Prototype ID Bank 4 | . . . . . . . . . . . . . . . . . . 4 . . . . Open Door 4 | . . . . . . . . 1 . 2 . . . . . 1 . . . . . . Branch Access Points 2 | . . 1 . 1 . . . . . . . . . . . . . . . . . . Emergency Access Points 3 | . . . . . 1 . . 1 . . . . . 1 . . . . . . . . Terminal Index 3 | . . 2 . 1 . . . . . . . . . . . . . . . . . . Unreport Threat 4 | . . 2 . 1 . . . . . . 1 . . . . . . . . . . . Locate Traps 1 | . . . . . . . 1 . . . . . . . . . . . . . . . Hauler Manifests 1 | . . . . 1 . . . . . . . . . . . . . . . . . . Zone Layout 1 | . . . . 1 . . . . . . . . . . . . . . . . . . Garrison Registry 2 | . . . . . 1 . . 1 . . . . . . . . . . . . . . Patrol Navigation 1 | . . . . . 1 . . . . . . . . . . . . . . . . . Security Stations 1 | . . . . . 1 . . . . . . . . . . . . . . . . . Fabricator Hacks 2 | . . . . . . . 1 . . . . . 1 . . . . . . . . . Network Status 2 | . . . . . . . 1 . . . . . 1 . . . . . . . . . Repair Station Hacks 2 | . . . . 2 . . . . . . . . . . . . . . . . . . Scan Component 1 | . . . . 1 . . . . . . . . . . . . . . . . . . Repair 1 | . . . . 1 . . . . . . . . . . . . . . . . . . Recycling Unit Hacks 2 | . 1 . . . . 1 . . . . . . . . . . . . . . . . Retrieve Components 2 | . 1 . . . . 1 . . . . . . . . . . . . . . . . Scanalyzer 1 | . . . . . . . . . . . . . . . . . . . . . 1 . Insert Component 1 | . . . . . . . . . . . . . . . . . . . . . 1 . Garrison Access Hacks 7 | . . . . 1 . . 3 . . 1 . . 1 . . . . . . . 1 . Unlock Access 3 | . . . . 1 . . 1 . . . . . 1 . . . . . . . . . Seal Access 3 | . . . . . . . 1 . . 1 . . . . . . . . . . 1 . Coupler Status 1 | . . . . . . . 1 . . . . . . . . . . . . . . . Unauthorized Hacks 42 | . 5 6 . 10 . 4 2 . . . 10 . 2 . . . . . . 1 . 2 Terminals 31 | . 3 6 . 9 . 4 2 . . . 5 . 1 . . . . . . . . 1 Track 2 | . . . . 2 . . . . . . . . . . . . . . . . . . Assimilate 1 | . 1 . . . . . . . . . . . . . . . . . . . . . Botnet 5 | . . 1 . 2 . 1 . . . . . . . . . . . . . . . 1 Skim 23 | . 2 5 . 5 . 3 2 . . . 5 . 1 . . . . . . . . . Fabricators 2 | . . . . . . . . . . . . . 1 . . . . . . . . 1 Haulers 1 | . . . . . . . . . . . . . 1 . . . . . . . . . Overload 1 | . . . . . . . . . . . . . . . . . . . . . . 1 Repair Stations 2 | . . . . 1 . . . . . . . . . . . . . . . 1 . . Patch 2 | . . . . 1 . . . . . . . . . . . . . . . 1 . . Recycling Units 7 | . 2 . . . . . . . . . 5 . . . . . . . . . . . Monitor 1 | . 1 . . . . . . . . . . . . . . . . . . . . . Recyclers 1 | . 1 . . . . . . . . . . . . . . . . . . . . . Tunnel 5 | . . . . . . . . . . . 5 . . . . . . . . . . . Scanalyzers . | . . . . . . . . . . . . . . . . . . . . . . . Garrison Access . | . . . . . . . . . . . . . . . . . . . . . . . Data Cores Recovered . | . . . . . . . . . . . . . . . . . . . . . . . Used . | . . . . . . . . . . . . . . . . . . . . . . . Hacking Detections 49 | . 4 5 . 6 3 5 6 3 . 1 6 . 4 . . . . . . 1 2 3 Full Trace Events 1 | . . . . . . . 1 . . . . . . . . . . . . . . . Feedback Events . | . . . . . . . . . . . . . . . . . . . . . . . Feedback Blocked . | . . . . . . . . . . . . . . . . . . . . . . . Robot Schematics Acquired . | . . . . . . . . . . . . . . . . . . . . . . . Robots Built . | . . . . . . . . . . . . . . . . . . . . . . . Authchips . | . . . . . . . . . . . . . . . . . . . . . . . Time . | . . . . . . . . . . . . . . . . . . . . . . . Total Robot Build Rating . | . . . . . . . . . . . . . . . . . . . . . . . Part Schematics Acquired 4 | . . . . . . . . . . . . . . . . . . 4 . . . . Parts Built . | . . . . . . . . . . . . . . . . . . . . . . . Authchips . | . . . . . . . . . . . . . . . . . . . . . . . Time . | . . . . . . . . . . . . . . . . . . . . . . . Total Part Build Rating . | . . . . . . . . . . . . . . . . . . . . . . . Parts Repaired 1 | . . . . 1 . . . . . . . . . . . . . . . . . . Time 38 | . . . . 38 . . . . . . . . . . . . . . . . . . Parts Recycled . | . . . . . . . . . . . . . . . . . . . . . . . Recycled Matter . | . . . . . . . . . . . . . . . . . . . . . . . Retrieved Matter . | . . . . . . . . . . . . . . . . . . . . . . . Retrieved Components 5 | . . . . . . 5 . . . . . . . . . . . . . . . . Parts Scanalyzed . | . . . . . . . . . . . . . . . . . . . . . . . Part Schematics Acquired . | . . . . . . . . . . . . . . . . . . . . . . . Parts Damaged . | . . . . . . . . . . . . . . . . . . . . . . . Bothacking | -11 -10 -9 -9 -8 -8 -8 -7 -7 -7 -7 -7 -7 -5 -5 -4 -4 -4 -4 -3 -3 -2 -1 ------------ Run | Yrd Mat Mat Min Mat Gar Mat Fac Gar Fac Sto Rec Scr Fac Gar Fac Upp Upp Zhi Pro Res Res Acc Used RIF Installer 2 | . . . . . 1 . . 1 . . . . . . . . . . . . . . Watcher Feeds 1 | . . . . . . . . 1 . . . . . . . . . . . . . . Robots Hacked 5 | . . . . . . . . . 2 1 . . . . 2 . . . . . . . Non-combat 5 | . . . . . . . . . 2 1 . . . . 2 . . . . . . . Combat . | . . . . . . . . . . . . . . . . . . . . . . . Robot Hacks Applied 5 | . . . . . . . . . 2 1 . . . . 2 . . . . . . . drop_inventory 4 | . . . . . . . . . 1 1 . . . . 2 . . . . . . . map_route 1 | . . . . . . . . . 1 . . . . . . . . . . . . . Relay Couplers Released 51 | . . . . . 22 . . 25 . . . . . 4 . . . . . . . . Machine Destruction 47 | . . . . . 22 . . 21 . . . . . 4 . . . . . . . . Programmers 4 | . . . . . . . . 4 . . . . . . . . . . . . . . Attached 1 | . . . . . . . . 1 . . . . . . . . . . . . . . Fabnet Peak Effective % . | . . . . . . . . . . . . . . . . . . . . . . . Robots Rewired 18 | . . . . . 3 . . 15 . . . . . . . . . . . . . . Allies Hacked . | . . . . . . . . . . . . . . . . . . . . . . . Hacks Repelled . | . . . . . . . . . . . . . . . . . . . . . . . Allies | -11 -10 -9 -9 -8 -8 -8 -7 -7 -7 -7 -7 -7 -5 -5 -4 -4 -4 -4 -3 -3 -2 -1 -------- Run | Yrd Mat Mat Min Mat Gar Mat Fac Gar Fac Sto Rec Scr Fac Gar Fac Upp Upp Zhi Pro Res Res Acc Total Allies 22 | . . . . . 5 . . 17 . . . . . . . . . . . . . . Largest Group 6 | . . . . . 4 4 3 6 6 6 . . . . . . . . . . . . Highest-Rated Group 213 | . . . . . 56 56 30 213 213 213 . . . . . . . . . . . . Highest-Rated Ally 83 | . . . . . 31 26 10 83 83 83 . . . . . . . . . . . . Total Orders 2 | . . . . . . . 2 . . . . . . . . . . . . . . . STAY 1 | . . . . . . . 1 . . . . . . . . . . . . . . . FOLLOW 1 | . . . . . . . 1 . . . . . . . . . . . . . . . Ally Attacks 115 | . . . . . 30 3 6 37 5 34 . . . . . . . . . . . . Total Damage 2368 | . . . . . 598 52 101 934 134 549 . . . . . . . . . . . . Kills 27 | . . . . . 4 1 2 14 2 4 . . . . . . . . . . . . Allies Corrupted . | . . . . . . . . . . . . . . . . . . . . . . . Allies Melted . | . . . . . . . . . . . . . . . . . . . . . . . Intel | -11 -10 -9 -9 -8 -8 -8 -7 -7 -7 -7 -7 -7 -5 -5 -4 -4 -4 -4 -3 -3 -2 -1 ------- Run | Yrd Mat Mat Min Mat Gar Mat Fac Gar Fac Sto Rec Scr Fac Gar Fac Upp Upp Zhi Pro Res Res Acc Robot Analysis Total 4 | . . . . . . . . . . . . . . . . . . 4 . . . . Derelict Logs Recovered 2 | . . . . . . . . . . . . . . . . 1 1 . . . . . Drone Launches . | . . . . . . . . . . . . . . . . . . . . . . . Drone Recoveries . | . . . . . . . . . . . . . . . . . . . . . . . Exploration | -11 -10 -9 -9 -8 -8 -8 -7 -7 -7 -7 -7 -7 -5 -5 -4 -4 -4 -4 -3 -3 -2 -1 ------------- Run | Yrd Mat Mat Min Mat Gar Mat Fac Gar Fac Sto Rec Scr Fac Gar Fac Upp Upp Zhi Pro Res Res Acc Turns Passed 13906 | 73 304 1368 90 1727 1535 357 958 2323 142 259 976 853 185 581 541 508 212 355 222 91 117 129 Spaces Moved 8140 | 37 139 607 49 795 918 244 510 1005 86 129 439 531 238 295 279 328 240 163 333 190 317 268 Core 265 | 4 . . . . . . . . . . . . . 2 7 . 196 . . . . 56 Treads 3357 | 33 139 607 49 489 . . . 855 86 129 439 531 . . . . . . . . . . Legs 2420 | . . . . 306 918 244 510 150 . . . . . 29 127 . 30 101 5 . . . Wheels 485 | . . . . . . . . . . . . . . . 145 328 12 . . . . . Hover 550 | . . . . . . . . . . . . . 238 264 . . 2 1 . . 45 . Flight 1063 | . . . . . . . . . . . . . . . . . . 61 328 190 272 212 Fastest Speed 17 | 50 160 145 145 130 130 127 123 160 160 160 160 160 40 43 110 110 50 109 30 29 17 32 Average Speed 131 | 154 160 151 145 139 130 128 130 190 160 160 160 160 43 125 140 146 75 203 63 39 29 38 Slowest Speed 950 | 200 160 160 145 145 130 130 196 400 160 160 160 160 48 800 950 150 280 280 179 99 58 250 Overloaded Moves 162 | . . . . . . . . . . . . . . . . . . . 11 . 138 13 Propulsion Burnouts . | . . . . . . . . . . . . . . . . . . . . . . . Robots Hopped 33 | . . . . . . . . . . . . . . . . . . . 2 4 18 9 Cave-ins Triggered . | . . . . . . . . . . . . . . . . . . . . . . . Teleports 1 | . . . . . . . . . . . . . . . . . . . . . . 1 Exploration Rate (%) 38 | 3 32 53 21 62 73 25 18 88 4 51 98 52 8 37 11 56 51 60 56 7 18 7 Regions Visited 22 Branch Regions 8 Pre-discovered Areas 10 | . . 1 . . . . . . . . 6 . . . . . . 3 . . . . Known Exits Taken 13 | . . 1 1 1 . 1 1 . 1 1 1 1 1 . 1 1 . . 1 . . . Unknown Exits Taken 6 | 1 1 . . . . . . . . . . . . . . . 1 1 . 1 1 . Scrap Searched 13 | . . . 1 . . . . . . . . 5 . . . 2 1 . 4 . . . Spaces Dug 13 | . . . . 2 3 . . . . . . . 1 4 2 . . . . . 1 . Terrain Destroyed 471 | . . . . 19 3 . 35 83 . 6 6 . 1 99 136 79 . . 2 . 2 . Melee 7 | . . . . 2 3 . . . . . . . 1 . 1 . . . . . . . Projectile 49 | . . . . . . . 14 5 . 6 6 . . 4 10 . . . 2 . 2 . AOE 415 | . . . . 17 . . 21 78 . . . . . 95 125 79 . . . . . . Terrain Rammed . | . . . . . . . . . . . . . . . . . . . . . . . Walls Destroyed . | . . . . . . . . . . . . . . . . . . . . . . . Machines Disabled . | . . . . . . . . . . . . . . . . . . . . . . . Actions | -11 -10 -9 -9 -8 -8 -8 -7 -7 -7 -7 -7 -7 -5 -5 -4 -4 -4 -4 -3 -3 -2 -1 --------- Run | Yrd Mat Mat Min Mat Gar Mat Fac Gar Fac Sto Rec Scr Fac Gar Fac Upp Upp Zhi Pro Res Res Acc Total 10376 | 46 183 926 55 1307 1110 275 664 1280 89 160 686 535 302 471 366 338 259 188 340 200 319 277 Wait 1150 | . 7 177 . 399 58 11 48 43 1 5 226 . 29 124 17 . . . 1 4 . . Move 8061 | 36 138 606 48 794 917 243 510 1004 85 128 438 530 238 294 278 327 239 162 329 183 282 252 Hop 27 | . . . . . . . . . . . . . . . . . . . 1 3 16 7 Pick Up 79 | 1 10 13 . 13 5 3 3 16 . 1 . 3 1 1 2 . . 4 . . 1 2 Fast Attach 128 | 7 1 11 . 12 9 2 10 22 . 1 . . 2 4 14 . 11 9 1 6 5 1 Attach 36 | . . 3 . 5 2 . . 2 . . 2 . 9 . 1 . 1 2 . 1 2 6 Detach 20 | . . 3 . 1 . . 2 5 . . . . 1 . . . . 3 2 1 1 1 Swap 64 | . 3 13 1 9 7 1 7 12 . . 1 1 2 3 3 1 . . . . . . Drop 145 | . 5 30 . 19 5 6 4 34 . 2 1 1 8 4 6 . 1 8 3 2 5 1 Fire 534 | 2 19 70 6 53 69 9 62 129 3 23 18 . 3 18 31 3 7 . 3 . 2 4 Melee 67 | . . . . 2 10 . 11 5 . . . . 9 9 14 7 . . . . . . Ram . | . . . . . . . . . . . . . . . . . . . . . . . Kick . | . . . . . . . . . . . . . . . . . . . . . . . Crush . | . . . . . . . . . . . . . . . . . . . . . . . Escape Stasis 23 | . . . . . 4 . . . . . . . . 14 . . . . . . 5 . Rewire 39 | . . . . . 24 . 7 8 . . . . . . . . . . . . . . Trap . | . . . . . . . . . . . . . . . . . . . . . . . Miscellaneous 3 | . . . . . . . . . . . . . . . . . . . . . . 3 Route ------- -11/Scrapyard -10/Materials -9/Materials (discovered 5 exits: *Mat x3 / *Min x2) -9/Mines (discovered 2 exits: *Mat x2) -8/Materials (discovered 3 exits: *Fac x2 / Gar) -8/Garrison (discovered 3 exits: *Mat x3) -8/Materials -7/Factory (discovered 2 exits: [*Fac] / Gar) -7/Garrison (discovered 3 exits: *Fac x3) -7/Factory -7/Storage -7/Recycling (discovered 2 exits: *Fac / *Scr) -7/Scraptown (discovered 2 exits: *Fac x2) -5/Factory (discovered 4 exits: Fac x3 / Gar) -5/Garrison -4/Factory (discovered 2 exits: *Res / *Upp) -4/Upper Caves -4/Upper Caves (discovered 2 exits: *Res / *Zhi) -4/Zhirov -3/Proximity Caves -3/Research -2/Research (discovered 2 exits: *Acc / Tes) -1/Access History --------- Turn | Location | Event 14 | -11/Scrapyard | Discovered new exit (range 15) 74 | -11/Scrapyard | Entered Materials 307 | -10/Materials | Build established: Mutant 347 | -10/Materials | Discovered new exit (range 16) 378 | -10/Materials | Entered another Materials area 378 | -9/Materials | Evolved 2 slots: Propulsion x1, Utility x1 815 | -9/Materials | Build established: Scavenger-Mutant 926 | -9/Materials | Discovered new exit (range 16) 1146 | -9/Materials | Discovered new exit (range 13) 1286 | -9/Materials | Build established: Mutant 1306 | -9/Materials | Identified exit to Mines 1334 | -9/Materials | Discovered new exit (range 15) 1561 | -9/Materials | Learned location of 1 exit from Storage 1662 | -9/Materials | Identified exit to Materials 1662 | -9/Materials | Learned location of 2 exits from Materials 1698 | -9/Materials | Learned location of Zion (-6) 1746 | -9/Materials | Entered Mines 1836 | -9/Mines | Entered Materials 1836 | -8/Materials | Evolved 2 slots: Propulsion x1, Utility x1 1837 | -8/Materials | Identified exit to Factory 2338 | -8/Materials | Repaired Adv. Treads 3546 | -8/Materials | Identified exit to Garrison 3563 | -8/Materials | Entered Garrison 3575 | -8/Garrison | Installed Relay Interface Framework 3637 | -8/Garrison | Triggered checkpoint 3657 | -8/Garrison | Garrison Relay disabled 3719 | -8/Garrison | Triggered checkpoint 3719 | -8/Garrison | Triggered checkpoint 3751 | -8/Garrison | Triggered checkpoint 3777 | -8/Garrison | Garrison Relay disabled 3784 | -8/Garrison | Destroyed 8 combat bots 3853 | -8/Garrison | Discovered new exit (range 10) 3889 | -8/Garrison | Triggered checkpoint 3903 | -8/Garrison | Triggered checkpoint 3915 | -8/Garrison | Garrison Relay disabled 4076 | -8/Garrison | Garrison Relay disabled 4259 | -8/Garrison | Discovered new exit (range 10) 4274 | -8/Garrison | Discovered new exit (range 73) 4274 | -8/Garrison | Discovered new exit (range 7) 4274 | -8/Garrison | Discovered new exit (range 31) 4303 | -8/Garrison | Triggered checkpoint 4333 | -8/Garrison | Rescued a captive Derelict 4335 | -8/Garrison | Rescued a captive Derelict 4375 | -8/Garrison | Garrison Relay disabled 4485 | -8/Garrison | Triggered checkpoint 4515 | -8/Garrison | Triggered checkpoint 4570 | -8/Garrison | Garrison Relay disabled 4679 | -8/Garrison | Learned Materials security intel 4736 | -8/Garrison | Spotted B-75 Beast 4765 | -8/Garrison | Core integrity fell below 50% 4775 | -8/Garrison | Destroyed B-75 Beast 4801 | -8/Garrison | Lost 5 parts (1p1n2u1w) 5098 | -8/Garrison | Entered Materials 5098 | -8/Materials | Accompanied by 4 allies 5424 | -8/Materials | Discovered exit to Factory (range 4) 5455 | -8/Materials | Entered Factory 5455 | -7/Factory | Accompanied by 3 allies 5455 | -7/Factory | Evolved 2 slots: Utility x2 5826 | -7/Factory | Lost 3 allies 6363 | -7/Factory | Discovered new exit (range 15) 6413 | -7/Factory | Identified exit to Garrison 6413 | -7/Factory | Entered Garrison 6448 | -7/Garrison | Lost 7 parts (3n3u1w) 6525 | -7/Garrison | Found Powered Armor 6530 | -7/Garrison | Found Powered Armor 6536 | -7/Garrison | Found Powered Armor 6542 | -7/Garrison | Found Powered Armor 6635 | -7/Garrison | Triggered checkpoint 6875 | -7/Garrison | Garrison Relay disabled 6981 | -7/Garrison | Triggered checkpoint 7001 | -7/Garrison | Triggered checkpoint 7171 | -7/Garrison | Triggered checkpoint 7310 | -7/Garrison | Garrison Relay disabled 7384 | -7/Garrison | Build established: Scavenger-Mutant 7395 | -7/Garrison | Triggered checkpoint 7414 | -7/Garrison | Garrison Relay disabled 7431 | -7/Garrison | Expanded RIF knowledge: Watcher Feeds 7479 | -7/Garrison | Triggered checkpoint 7521 | -7/Garrison | Lost 3 allies 7581 | -7/Garrison | Discovered new exit (range 10) 7597 | -7/Garrison | Identified exit to Factory 7643 | -7/Garrison | Triggered checkpoint 7673 | -7/Garrison | Triggered checkpoint 7678 | -7/Garrison | Garrison Relay disabled 8111 | -7/Garrison | Triggered checkpoint 8161 | -7/Garrison | Lost 3 allies 8274 | -7/Garrison | Discovered exit to Factory (range 12) 8285 | -7/Garrison | Triggered checkpoint 8303 | -7/Garrison | Garrison Relay disabled 8307 | -7/Garrison | Triggered checkpoint 8362 | -7/Garrison | Discovered exit to Factory (range 48) 8362 | -7/Garrison | Discovered exit to Factory (range 73) 8362 | -7/Garrison | Discovered exit to Factory (range 22) 8521 | -7/Garrison | Triggered checkpoint 8574 | -7/Garrison | Found embedded Infiltrators 8736 | -7/Garrison | Entered Factory 8736 | -7/Factory | Accompanied by 6 allies 8849 | -7/Factory | Discovered new exit (range 19) 8876 | -7/Factory | Identified exit to Storage 8878 | -7/Factory | Entered Storage 8878 | -7/Storage | Accompanied by 6 allies 8879 | -7/Storage | Identified exit to Recycling 8942 | -7/Storage | Garrison activated, responded to threat 8993 | -7/Storage | Lost 4 allies 9130 | -7/Storage | Used back door to open Recycling access 9137 | -7/Storage | Entered Recycling 9269 | -7/Recycling | Build established: Mutant 9341 | -7/Recycling | Discovered new exit (range 16) 9871 | -7/Recycling | Scanned before Scraplab entrance 9889 | -7/Recycling | Learned location of 1 exit from Upper Caves 9894 | -7/Recycling | Entered Scraplab 9907 | -7/Recycling | Discovered new exit (range 2) 9907 | -7/Recycling | Identified exit to Scraptown 10043 | -7/Recycling | Learned Factory stockpile data 10055 | -7/Recycling | Learned Extension trap positions 10075 | -7/Recycling | Learned 2 Upper Caves zone layouts 10104 | -7/Recycling | Learned location of 2 exits from Proximity Caves 10113 | -7/Recycling | Entered Scraptown 10114 | -7/Scraptown | Identified exit to Factory 10173 | -7/Scraptown | Visited CR-KLE's Repair Center 10185 | -7/Scraptown | CR-KLE repaired 9 parts 10219 | -7/Scraptown | Visited Symbiants 10246 | -7/Scraptown | Turned away by UFD registrar 10261 | -7/Scraptown | Visited Bundlers 10329 | -7/Scraptown | Visited CPS Storage 10339 | -7/Scraptown | Visited TADAMA 10966 | -7/Scraptown | Entered Factory 10966 | -5/Factory | Evolved 4 slots: Power x1, Propulsion x2, Utility x1 10967 | -5/Factory | Identified exit to Factory 11151 | -5/Factory | Identified exit to Garrison 11151 | -5/Factory | Entered Garrison 11382 | -5/Garrison | Spotted B-75 Beast 11386 | -5/Garrison | Triggered checkpoint 11401 | -5/Garrison | Garrison Relay disabled 11418 | -5/Garrison | Destroyed B-75 Beast 11446 | -5/Garrison | Destroyed 9 combat bots 11452 | -5/Garrison | Lost 4 parts (3n1u) 11584 | -5/Garrison | Discovered exit to Factory (range 11) 11683 | -5/Garrison | Heavy support dispatched to Factory 11701 | -5/Garrison | Heavy support dispatched to Factory 11732 | -5/Garrison | Entered Factory 11732 | -4/Factory | Evolved 2 slots: Utility x2 11753 | -4/Factory | Lost 3 parts (2n1u) 12027 | -4/Factory | Destroyed 7 combat bots 12037 | -4/Factory | Lost 4 parts (1n2u1w) 12053 | -4/Factory | Discovered new exit (range 10) 12062 | -4/Factory | Identified exit to Research 12211 | -4/Factory | Build established: Scavenger-Mutant 12226 | -4/Factory | Discovered new exit (range 8) 12233 | -4/Factory | Identified exit to Upper Caves 12273 | -4/Factory | Entered Upper Caves 12274 | -4/Upper Caves | Identified exit to Upper Caves 12301 | -4/Upper Caves | Attracted the attention of an 0b10 checkpoint 12344 | -4/Upper Caves | Lost 4 parts (3n1w) 12397 | -4/Upper Caves | Learned location of 1 exit from Factory 12397 | -4/Upper Caves | Learned 8 Factory zone layouts 12397 | -4/Upper Caves | Learned Extension stockpile data 12444 | -4/Upper Caves | Learned Research terminal intel 12593 | -4/Upper Caves | Build established: Infiltrator-Mutant 12781 | -4/Upper Caves | Entered another Upper Caves area 12788 | -4/Upper Caves | Lost 4 parts (2p1u1w) 12800 | -4/Upper Caves | Discovered exit to Research (range 10) 12818 | -4/Upper Caves | Attracted the attention of an 0b10 checkpoint 12894 | -4/Upper Caves | Found DCF Scrap (12 items) 12968 | -4/Upper Caves | Discovered new exit (range 13) 12993 | -4/Upper Caves | Entered Zhirov 12993 | -4/Zhirov | Discovered new exit (range 3) 13044 | -4/Zhirov | Met Zhirov 13113 | -4/Zhirov | Learned location of Quarantine (-3) 13113 | -4/Zhirov | Learned location of Testing (-2) 13131 | -4/Zhirov | Zhirov requested help retrieving the SGEMP Prototype 13166 | -4/Zhirov | Found Alien Artifact 13166 | -4/Zhirov | Identified Integrated Dissipator 13166 | -4/Zhirov | Installed Integrated Dissipator, increased core heat dissipation (+20) 13190 | -4/Zhirov | Build established: Derelict-Mutant 13194 | -4/Zhirov | Found Alien Artifact 13348 | -4/Zhirov | Entered Proximity Caves 13456 | -3/Proximity Caves | Spotted B-86 Titan 13495 | -3/Proximity Caves | Core integrity fell below 50% 13570 | -3/Proximity Caves | Entered Research 13570 | -3/Research | Evolved 2 slots: Utility x1, Weapon x1 13571 | -3/Research | Loaded intel: 23 terminal locations 13587 | -3/Research | Found Prototype Device 13587 | -3/Research | Identified Exp. Thermal Shield 13613 | -3/Research | Spotted B-86 Titan 13655 | -3/Research | Discovered new exit (range 5) 13661 | -3/Research | Entered another Research area 13661 | -2/Research | Evolved 2 slots: Propulsion x2 13662 | -2/Research | Identified exit to Testing 13691 | -2/Research | Spotted B-90 Cyclops 13753 | -2/Research | Identified Transdimensional Reconstructor 13758 | -2/Research | Spotted B-90 Cyclops 13766 | -2/Research | Found Prototype Hackware 13766 | -2/Research | Identified Exp. Hacking Suite 13773 | -2/Research | Discovered new exit (range 15) 13778 | -2/Research | Entered Access 13778 | -1/Access | Evolved 2 slots: Utility x2 13796 | -1/Access | Lost 8 parts (1p3n4u) 13851 | -1/Access | Spotted B-99 Colossus 13851 | -1/Access | Spotted B-99 Colossus 13870 | -1/Access | Warped through subspace 13888 | -1/Access | Core integrity fell below 50% 13894 | -1/Access | Core integrity fell below 20% 13907 | -1/Access | Destroyed by H-88 Terminator with KE Penetrator Last Messages --------------- 13887_ Exp. Hacking Suite destroyed. 13887_ Slug penetrates H-88 Terminator. 13889_ Penetrated by Slug. 13892_ Slug penetrates Wall. 13893_ Imp. Armor Integrity Analyzer destroyed. 13893_ Penetrated by Slug. 13893_ Slug penetrates Wall. 13893_ Penetrated by Slug. 13893_ Slug penetrates Wall. 13893_ Slug penetrates B-99 Colossus. 13893_ Slug penetrates Wall. 13894_ Wall collapses. 13894_ Acquired 1 matter. 13895_ Acquired 9 matter. 13896_ Slug penetrates Sealed Heavy Doors. 13896_ Knocked back. 13896_ Penetrated by Slug. 13896_ Relay Coupler [NC] destroyed. 13900_ WN |OXM9PWINAI0GVC%BJDUF,UFS3HUL,HUNX1D 13900_ Slug penetrates Sealed Heavy Doors. Map ----- +----------------------------------------------------+ | ?????????????????????????????????????????????????? | | ?????????????????????????????????????????????????? | | ?????????????????????????????????????????????????? | | ?????????????????????????????????????????????????? | | ?????????????????????????????????????????????????? | | ?????????????????????????????????????????????????? | | ?????????????????????????????????????????????????? | | ?????????????????????????????????????????????????? | | ?????????????????????????????????????????????????? | | ?????????????????????????????????????????????????? | | ?????????????????????????????????????????????????? | | ?????????????????????????????????????????????????? | | ?????????????????????????????????????????????????? | | ?????????????????????????????????????????????????? | | ?????????????????????????????????????????????????? | | ?????????????????????????????????????????????????? | | ?????????????????????????????????????????????????? | | ?????????????????????????????????????????????????? | | ???????????????????????""""??????????????????????? | | ???????????????????????# ??????????????????????? | | ???????????????????????# ??????????????????????? | | ???????????????????????# "??????????????????????? | | ???????????????????????# "??????????????????????? | | ???????????????????????# "??????????????????????? | | ???????????????????????# "??????????????????????? | | ???????????????????????# @"??????????????????????? | | ???????????????????????# """""" #??????????????? | | ???????????????????????# #??????????????? | | ???????????????????????# """""""""#??????????????? | | ???????????????????????# "??????????????????????? | | ???????????????????????# ""??????????????????????? | | ???????????????????????#%"""""""""#??????????????? | | ???????????????????????# % #??????????????? | | ???????????????????????# %% #??????????????? | | ???????????????????????# % #??????????????? | | ???????????????????????# #??????????????? | | ???????????????????????# #??????????????? | | ???????????????????????# #??????????????? | | ???????????????????????# #??????????????? | | ???????????????????????##""% "###??????????????? | | ?????????????????????????## # ! ??????????? | | ??????????????????????????# # ?????????? | | ????????????????????????### +? """ ???????????? | | ????????????????????????# " #??"??????????????? | | ????????????????????????### #?????????????????? | | ????????????????????????# " #?????????????????? | | ????????????????????????### #???#+#??????####?? | | ??????????????????????????# #???# #??? ?? | | ????????????????????????### %##### ## ? | | ????????????????????????#""% # ? | +----------------------------------------------------+ Best States ------------- Heat Dissipation 72 Coolant Potential 130 Energy Generation 43 Energy Capacity 545 Matter Stores 300 Matter Capacity 300 Sight Range 16 Robot Scan Range 19 Terrain Scan Range 24 Terrain Scan Density 85 Jamming Range 16 Base Temperature (-) 200 Armor Coverage 1600 Resistance: TH 25 Core Shielding 40 Phase Shifting 15 Evasion (%) 65 Targeting Accuracy 6 Melee Accuracy 16 Armor Integrity Analysis 40 Recoil Reduction 4 Offensive Hacking 16 Defensive Hacking 12 Relay Coupler Types 1 Relay Coupler Value 33 Item Schematics ----------------- Assault Drone Bay | -4/Zhirov | Free Exp. Heat Sink | -4/Zhirov | Free Exp. Optical Array | -4/Zhirov | Free Imp. Arc Thrower | -4/Zhirov | Free Robot Schematics ------------------ None Fabricated ------------ Nothing Alien Tech Used ----------------- Integrated Dissipator Transdimensional Reconstructor Achievements -------------- None Challenges ------------ None Game ------ Seed InsulationCombatMatrix Manual? 0 Play Time 02:05:20 Cumulative 387.5 hours Start 2024.10.04 @ 19:16:30 End 2024.10.05 @ 23:52:11 Sessions 5 Manual Loads 0 Difficulty Rogue Special Mode None Game No. 385 Rogue 380 Adventurer 5 Explorer 0 Win Type - Total 8 Types 5/0/0/3/0/0/0/0/0 Lore% 80 Gallery% 84 Achievement% 71 Wizard Run 0 Options --------- Layout 1 ASCII 0 Keyboard 0 Movement Arrows Keybinds 0 Fullscreen 1 Font 24/Terminus Map View 50x35 Zoom Use 0% Tactical HUD 1 Map Filters NONE Filters NONE Steam 1 RUN: 517e30bb-d99d-475c-9060-b143c22b262e